fUSD/lending_fUSD_20260428
["ID","MTS","AMOUNT","RATE_DAILY","PERIOD"]
[421270941,1777311038750,-150.0,0.00010001,2]
[421270942,1777311038759,-150.0,0.00010022,2]
[421270943,1777311038769,-150.0,0.00010043,2]
[421270944,1777311038779,-150.0,0.00010061,2]
[421270945,1777311038788,-150.0,0.00010065,2]
[421270946,1777311038798,-150.0,0.00010086,2]
[421270947,1777311038807,-150.0,0.000101,2]
[421270948,1777311038816,-150.0,0.00010108,2]
[421270949,1777311038826,-150.0,0.00010123,2]
[421270950,1777311038835,-150.0,0.00010129,2]
[421270951,1777311038845,-150.0,0.00010151,2]
[421270952,1777311038854,-150.0,0.00010172,2]
[421270953,1777311038864,-150.0,0.00010185,2]
[421270954,1777311038874,-188.966,0.00010192,2]
[421270955,1777311038883,-1142.85,0.00010192,2]
[421270956,1777311038892,-150.0,0.00010193,2]
[421270957,1777311038901,-150.0,0.00010215,2]
[421270958,1777311038911,-150.0,0.00010231,2]
[421270959,1777311038920,-150.0,0.00010236,2]
[421270960,1777311038929,-150.0,0.00010246,2]
[421270961,1777311038939,-150.0,0.00010258,2]
[421270962,1777311038948,-150.0,0.00010279,2]
[421270963,1777311038957,-484.748606,0.0001029,2]
[421270964,1777311038966,-374.247064,0.0001029,2]
[421270965,1777311038975,-208.485106,0.0001029,2]
[421270966,1777311038984,-6211.542069,0.0001029,2]
[421270967,1777311038994,-427.287266,0.0001029,2]
[421270968,1777311039003,-374.247069,0.0001029,2]
[421270969,1777311039012,-2500.0,0.000103,2]
[421270970,1777311039021,-150.0,0.000103,2]
[421270971,1777311039030,-150.0,0.00010308,2]
[421270972,1777311039039,-150.0,0.00010322,2]
[421270973,1777311039049,-150.0,0.00010343,2]
[421270974,1777311039058,-150.0,0.00010362,2]
[421270975,1777311039067,-150.0,0.00010365,2]
[421270976,1777311039076,-150.0,0.0001037,2]
[421270977,1777311039085,-150.0,0.00010386,2]
[421270978,1777311039095,-500.0,0.00010399,2]
[421270979,1777311039104,-625.06577208,0.00010399,2]
[421270980,1777311039113,-365.00215103,0.00010399,2]
[421270981,1777311039123,-88181.62743479,0.000104,2]
[421270982,1777311039944,-1286.26560742,0.000104,2]
[421270983,1777311039999,-1153.7396,0.000104,2]
[421270990,1777311042816,-434.753083,0.000104,2]
[421270991,1777311042827,-29474.70498302,0.000104,2]
[421270992,1777311045692,-6079.08913418,0.000104,2]
[421270993,1777311045964,-396221.02765759,0.000104,2]
[421270994,1777311045975,-4055.01828223,0.000104,2]
[421270995,1777311045985,-4104.63521305,0.000104,2]
[421270996,1777311045994,-1657.50874905,0.000104,2]
[421270997,1777311046004,-3716.11103668,0.000104,2]
[421270998,1777311046013,-5000.0,0.000104,2]
[421270999,1777311046023,-150.0,0.00010407,2]
[421271000,1777311046033,-150.0,0.00010429,2]
[421271001,1777311046043,-150.0,0.00010431,2]
[421271002,1777311046052,-150.0,0.0001045,2]
[421271003,1777311046062,-150.0,0.00010472,2]
[421271004,1777311046072,-503.03354643,0.00010473,2]
[421271005,1777311046081,-502.86553041,0.00010473,2]
[421271006,1777311046091,-166.47602367,0.00010473,2]
[421271007,1777311046100,-168.06414034,0.00010473,2]
[421271008,1777311046110,-500.0,0.00010473,2]
[421271009,1777311046119,-500.0,0.00010473,2]
[421271010,1777311046130,-500.0,0.00010473,2]
[421271011,1777311046139,-313.62196912,0.00010473,2]
[421271012,1777311046149,-500.0,0.00010473,2]
[421271013,1777311046158,-365.62199556,0.00010473,2]
[421271014,1777311046168,-165.27848887,0.00010493,2]
[421271015,1777311046178,-150.0,0.00010493,2]
[421271016,1777311046187,-247.99859753,0.00010493,2]
[421271017,1777311046196,-150.0,0.00010493,2]
[421271018,1777311046205,-150.0,0.00010493,2]
[421271019,1777311046215,-224.05607549,0.00010493,2]
[421271020,1777311046225,-151.0,0.00010494,2]
[421271021,1777311046234,-151.0,0.00010494,2]
[421271022,1777311046244,-151.0,0.00010494,2]
[421271023,1777311046253,-151.0,0.00010494,2]
[421271024,1777311046262,-151.0,0.00010494,2]
[421271025,1777311046272,-151.0,0.00010494,2]
[421271026,1777311046282,-151.0,0.00010494,2]
[421271027,1777311046291,-151.0,0.00010494,2]
[421271028,1777311046301,-151.0,0.00010494,2]
[421271029,1777311046312,-151.0,0.00010494,2]
[421271030,1777311046322,-151.0,0.00010494,2]
[421271031,1777311046332,-151.0,0.00010494,2]
[421271032,1777311046343,-500.0,0.00010494,2]
[421271033,1777311046352,-151.0,0.00010494,2]
[421271034,1777311046361,-151.0,0.00010494,2]
[421271035,1777311046371,-500.0,0.00010494,2]
[421271036,1777311046380,-151.0,0.00010494,2]
[421271037,1777311046390,-151.0,0.00010494,2]
[421271038,1777311046399,-500.0,0.00010494,2]
[421271039,1777311046409,-151.0,0.00010494,2]
[421271040,1777311046418,-151.0,0.00010494,2]
[421271041,1777311046427,-500.0,0.00010494,2]
[421271042,1777311046437,-151.0,0.00010494,2]
[421271043,1777311046447,-151.0,0.00010494,2]
[421271044,1777311046456,-500.0,0.00010494,2]
[421271045,1777311046465,-151.0,0.00010494,2]
[421271046,1777311046475,-500.0,0.00010494,2]
[421271047,1777311046484,-151.0,0.00010494,2]
[421271048,1777311046494,-500.0,0.00010494,2]
[421271049,1777311046503,-151.0,0.00010494,2]
[421271050,1777311046513,-500.0,0.00010494,2]
[421271051,1777311046522,-151.0,0.00010494,2]
[421271052,1777311046531,-500.0,0.00010494,2]
[421271053,1777311046541,-151.0,0.00010494,2]
[421271054,1777311046551,-500.0,0.00010494,2]
[421271055,1777311046560,-151.0,0.00010494,2]
[421271057,1777311046570,-500.0,0.00010494,2]
[421271058,1777311046579,-500.0,0.00010494,2]
[421271059,1777311046589,-151.0,0.00010494,2]
[421271060,1777311046598,-500.0,0.00010494,2]
[421271061,1777311046607,-151.0,0.00010494,2]
[421271062,1777311046617,-500.0,0.00010494,2]
[421271063,1777311046627,-151.0,0.00010494,2]
[421271064,1777311046636,-500.0,0.00010494,2]
[421271065,1777311046646,-151.0,0.00010494,2]
[421271066,1777311046655,-500.0,0.00010494,2]
[421271067,1777311046664,-151.0,0.00010494,2]
[421271068,1777311046674,-500.0,0.00010494,2]
[421271069,1777311046683,-500.0,0.00010494,2]
[421271070,1777311046693,-516.36731322,0.00010499,2]
[421271071,1777311046702,-643462.83534297,0.000105,2]
[421271072,1777311046715,-15533.36304951,0.000105,2]
[421271073,1777311046726,-810.738422,0.000105,2]
[421271077,1777311744294,-280.0,8.219e-05,2]
[421271078,1777311744321,-300.0,8.87e-05,2]
[421271079,1777311744345,-300.0,9.041e-05,2]
[421271080,1777311744369,-420.0,9.331e-05,2]
[421271081,1777311794605,-579.813,9.331e-05,2]
[421271082,1777311794629,-1200.0,9.52e-05,2]
[421271083,1777311794653,-300.0,9.52e-05,2]
[421271084,1777311794676,-255.50150572,9.521e-05,2]
[421271085,1777311794704,-500.0,9.521e-05,2]
[421271086,1777311794732,-223.68549428,9.521e-05,2]
[421271088,1777312231608,-280.0,8.219e-05,2]
[421271089,1777312231617,-300.0,9.041e-05,2]
[421271090,1777312231627,-3058.4445,9.422e-05,2]
[421271091,1777312231636,-300.0,9.52e-05,2]
[421271092,1777312231646,-1200.0,9.52e-05,2]
[421271093,1777312231655,-276.31450572,9.521e-05,2]
[421271094,1777312231664,-500.0,9.521e-05,2]
[421271095,1777312231673,-500.0,9.521e-05,2]
[421271096,1777312231682,-500.0,9.521e-05,2]
[421271097,1777312231692,-500.0,9.521e-05,2]
[421271098,1777312231702,-500.0,9.521e-05,2]
[421271099,1777312231711,-500.0,9.521e-05,2]
[421271100,1777312231719,-500.0,9.521e-05,2]
[421271101,1777312231729,-500.0,9.521e-05,2]
[421271102,1777312231738,-500.0,9.521e-05,2]
[421271103,1777312231747,-500.0,9.521e-05,2]
[421271104,1777312231756,-500.0,9.521e-05,2]
[421271105,1777312231766,-500.0,9.521e-05,2]
[421271106,1777312231775,-500.0,9.521e-05,2]
[421271107,1777312231784,-640.16558638,9.521e-05,2]
[421271108,1777312231794,-500.0,9.521e-05,2]
[421271109,1777312231804,-500.0,9.521e-05,2]
[421271110,1777312231813,-500.0,9.521e-05,2]
[421271111,1777312231823,-500.0,9.521e-05,2]
[421271112,1777312231832,-500.0,9.521e-05,2]
[421271113,1777312231842,-500.0,9.521e-05,2]
[421271114,1777312231851,-500.0,9.521e-05,2]
[421271115,1777312231860,-500.0,9.521e-05,2]
[421271116,1777312231870,-500.0,9.521e-05,2]
[421271117,1777312231879,-500.0,9.521e-05,2]
[421271118,1777312231889,-500.0,9.521e-05,2]
[421271119,1777312231899,-250.0,0.0001025,2]
[421271120,1777312231908,-190.0,0.00010472,2]
[421271121,1777312231917,-420.0,0.00010472,2]
[421271122,1777312231927,-1957.5021458,0.00010492,2]
[421271123,1777312231937,-13603.0812622,0.00010492,2]
[421271124,1777312231947,-3644.7100273,0.000105,2]
[421271125,1777312231956,-5781.5250641,0.000105,2]
[421271126,1777312231966,-18928.7673004,0.000105,2]
[421271127,1777312231975,-500.0,0.000105,2]
[421271128,1777312231985,-1109.22490534,0.000105,2]
[421271129,1777312231995,-161.0,0.000105,3]
[421271131,1777312232004,-157.0,0.000105,3]
[421271133,1777312232014,-152.0,0.00010505,7]
[421271135,1777312232023,-1253.0,0.000109,3]
[421271137,1777312232032,-1611.0,0.00011232,5]
[421271139,1777312232042,-5529.0,0.000118,5]
[421271141,1777312232051,-3035.2577005,0.00011826,2]
[421271143,1777312232060,-4223.5788791,0.00011835,2]
[421271145,1777312232070,-166.06006697,0.0001188,2]
[421271147,1777312232082,-911.72705474,0.0001188,2]
[421271149,1777312232094,-922.21287829,0.0001188,2]
[421271151,1777312232104,-2000.0,0.0001188,2]
[421271152,1777312232114,-290.99975633,0.000119,2]
[421271153,1777312232210,-25.97188955,0.000119,2]
[421271154,1777312232225,-491.38594439,0.000119,2]
[421271155,1777312232234,-560.15914424,0.000119,2]
[421271158,1777312237779,-1567.40771518,0.000119,2]
[421271159,1777312237790,-442.60055424,0.000119,2]
[421271160,1777312237800,-4222.97357429,0.000119,2]
[421271161,1777312237812,-640.14698549,0.000119,2]
[421271162,1777312237825,-136.87944022,0.000119,2]
[421271163,1777312237835,-229.1110261,0.000119,2]
[421271164,1777312237846,-375.5505234,0.000119,2]
[421271165,1777312238098,-4716.85850979,0.000119,2]
[421271166,1777312238110,-1036.61238084,0.000119,2]
[421271177,1777312240210,-506.26816285,0.000119,2]
[421271178,1777312240223,-7099.10164263,0.000119,2]
[421271179,1777312240232,-200.0,0.00011904,2]
[421271180,1777312240241,-151.0,0.00011993,2]
[421271181,1777312240251,-500.0,0.00011993,2]
[421271182,1777312240262,-151.0,0.00011993,2]
[421271183,1777312240272,-500.0,0.00011993,2]
[421271184,1777312240281,-151.0,0.00011993,2]
[421271185,1777312240293,-151.0,0.00011993,2]
[421271186,1777312240303,-151.0,0.00011993,2]
[421271187,1777312240314,-151.0,0.00011993,2]
[421271188,1777312240324,-151.0,0.00011993,2]
[421271189,1777312240333,-151.0,0.00011993,2]
[421271190,1777312240343,-151.0,0.00011993,2]
[421271191,1777312240352,-151.0,0.00011993,2]
[421271192,1777312240362,-151.0,0.00011993,2]
[421271193,1777312240371,-13219.4717082,0.00011998,2]
[421271194,1777312240381,-1481.0,0.00012,5]
[421271195,1777312240390,-1186.0,0.00012,5]
[421271196,1777312240399,-1402481.36487498,0.00012,2]
[421271197,1777312240414,-278.38,0.00012,2]
[421271198,1777312240425,-1166.4,0.00012,2]
[421271207,1777312245991,-100.42727262,0.00012,2]
[421271208,1777312246004,-1413021.76612011,0.00012,2]
[421271209,1777312246018,-151.0,0.00012,2]
[421271210,1777312246028,-151.0,0.00012,2]
[421271211,1777312246038,-2000.0,0.00012,2]
[421271213,1777312246048,-2000.0,0.00012,2]
[421271214,1777312246057,-2000.0,0.00012,2]
[421271215,1777312246067,-2000.0,0.00012,2]
[421271216,1777312246076,-677.2575368,0.00012123,2]
[421271217,1777312246085,-942.4078317,0.00012132,2]
[421271218,1777312246095,-500.0,0.00012438,2]
[421271219,1777312246106,-1290.0326134,0.00012491,2]
[421271220,1777312246116,-350.0,0.00012691,2]
[421271221,1777312246125,-181.4594273,0.00012935,2]
[421271222,1777312246135,-287.8451836,0.00012935,2]
[421271223,1777312246145,-157.0,0.00013,3]
[421271224,1777312246155,-155.0,0.00013199,2]
[421271225,1777312246166,-643.52966428,0.00013411,21]
[421271226,1777312246176,-506.0,0.000136,2]
[421271227,1777312246185,-160.0,0.00013686,2]
[421271228,1777312246196,-162.27045424,0.00013686,2]
[421271229,1777312246205,-500.0,0.00013698,2]
[421271230,1777312246215,-500.0,0.00013698,2]
[421271231,1777312246224,-500.0,0.00013698,2]
[421271233,1777312246234,-500.0,0.00013698,2]
[421271235,1777312246247,-500.0,0.00013698,2]
[421271237,1777312246257,-500.0,0.00013698,2]
[421271239,1777312246269,-500.0,0.00013698,2]
[421271240,1777312246279,-500.0,0.00013698,2]
[421271241,1777312246288,-341.11629806,0.00013698,2]
[421271242,1777312246298,-500.0,0.00013698,2]
[421271243,1777312246307,-500.0,0.00013698,2]
[421271244,1777312246317,-519.24,0.00013699,2]
[421271245,1777312246327,-466.71916178,0.00013699,2]
[421271246,1777312246336,-5092.40903317,0.00013778,2]
[421271247,1777312246347,-2949.6628393,0.00013791,2]
[421271248,1777312246356,-332.99,0.000138,2]
[421271249,1777312246365,-643.52966429,0.00014143,21]
[421271250,1777312246375,-658.1587417,0.0001419,2]
[421271251,1777312246384,-10748.00865372,0.0001429,7]
[421271252,1777312246393,-155.0,0.00014399,2]
[421271253,1777312246403,-150.99,0.00014504,2]
[421271254,1777312246414,-171.45,0.00014504,2]
[421271255,1777312246423,-2748.33,0.00014504,2]
[421271256,1777312246433,-9999.99,0.00014504,2]
[421271257,1777312246442,-1374.91,0.00014504,2]
[421271258,1777312246451,-499.99,0.00014504,2]
[421271259,1777312246461,-1552.8,0.00014504,2]
[421271260,1777312246471,-299.99,0.00014504,2]
[421271261,1777312246483,-160.0,0.00015,2]
[421271262,1777312246493,-150.0,0.00015068,2]
[421271263,1777312246503,-157.0,0.000155,3]
[421271264,1777312246512,-158.0,0.000156,2]
[421271265,1777312246522,-5092.40903317,0.00015656,2]
[421271266,1777312246532,-8641.98218627,0.00016186,2]
[421271267,1777312246541,-151.0,0.000166,2]
[421271268,1777312246550,-180.0,0.000166,12]
[421271269,1777312246560,-442.60055418,0.00016961,2]
[421271270,1777312246569,-162.27045424,0.00017,7]
[421271271,1777312246579,-180.0,0.00017325,12]
[421271272,1777312246589,-5092.40903317,0.00017533,2]
[421271273,1777312246598,-151.0,0.00018,2]
[421271274,1777312246608,-157.0,0.00018,3]
[421271275,1777312246617,-151.0,0.00019,2]
[421271276,1777312246627,-206.0,0.00019,2]
[421271277,1777312246637,-150.0,0.00019151,2]
[421271278,1777312246646,-2475.0,0.00019151,2]
[421271279,1777312246655,-543.431,0.00019151,2]
[421271280,1777312246665,-250.2,0.00019179,2]
[421271281,1777312246675,-2213.0,0.00019393,5]
[421271282,1777312246685,-5092.40903317,0.00019411,2]
[421271283,1777312246694,-151.0,0.000195,2]
[421271284,1777312246703,-332.99,0.000195,2]
[421271285,1777312246716,-506.0,0.00019636,7]
[421271286,1777312246726,-151.0,0.00019997,2]
[421271287,1777312246735,-150.0,0.0002,2]
[421271288,1777312246745,-200000.0,0.0002,2]
[421271289,1777312246755,-99126.0,0.0002,2]
[421271290,1777312246765,-151.0,0.0002,2]
[421271291,1777312246775,-206.0,0.0002,2]
[421271292,1777312246785,-157.0,0.000205,3]
[421271293,1777312246795,-405.0,0.00020713,7]
[421271294,1777312246804,-206.0,0.00021,2]
[421271295,1777312246814,-5092.40903317,0.00021289,2]
[421271296,1777312246824,-150.0,0.0002137,2]
[421271298,1777312246834,-150.0,0.0002137,2]
[421271300,1777312246843,-200.0,0.0002137,2]
[421271301,1777312246853,-500.0,0.0002137,2]
[421271303,1777312246863,-507.88840085,0.0002137,2]
[421271304,1777312246872,-150.0,0.0002137,2]
[421271305,1777312246882,-500.0,0.0002137,2]
[421271307,1777312246892,-150.0,0.0002137,2]
[421271309,1777312246903,-500.0,0.0002137,2]
[421271311,1777312246913,-161.88955031,0.0002137,2]
[421271313,1777312246924,-500.0,0.0002137,2]
[421271315,1777312246934,-500.0,0.0002137,2]
[421271317,1777312246944,-500.0,0.0002137,2]
[421271319,1777312246954,-500.0,0.0002137,2]
[421271321,1777312246965,-500.0,0.0002137,2]
[421271323,1777312246976,-500.0,0.0002137,2]
[421271326,1777312246986,-500.0,0.0002137,2]
[421271327,1777312246997,-500.0,0.0002137,2]
[421271330,1777312247007,-500.0,0.0002137,2]
[421271332,1777312247018,-500.0,0.0002137,2]
[421271334,1777312247027,-500.0,0.0002137,2]
[421271336,1777312247038,-500.0,0.0002137,2]
[421271338,1777312247048,-229.11102609,0.000219,2]
[421271339,1777312247065,-206.0,0.00022,2]
[421271342,1777312247075,-442.60055418,0.00022022,2]
[421271344,1777312247085,-150.0,0.00022151,2]
[421271346,1777312247096,-1379.708,0.00022151,2]
[421271348,1777312247107,-151.0,0.000225,2]
[421271350,1777312247117,-151.0,0.000225,2]
[421271351,1777312247127,-500.0,0.00022925,120]
[421271353,1777312247136,-206.0,0.00023,2]
[421271355,1777312247146,-157.0,0.00023,3]
[421271357,1777312247157,-5092.40903317,0.00023167,2]
[421271359,1777312247167,-500.0,0.00023747,120]
[421271362,1777312247178,-332.99,0.00024,7]
[421271365,1777312247199,-213.1139,0.00024,2]
[421271367,1777312247209,-500.0,0.00024569,120]
[421271369,1777312247220,-5317.67512146,0.00024654,76]
[421271371,1777312247230,-150.0,0.00024658,2]
[421271373,1777312247240,-151.0,0.00024897,7]
[421271375,1777312247251,-162.27045424,0.000249,3]
[421271377,1777312247261,-1050.0,0.000249,2]
[421271379,1777312247271,-300.0,0.000249,7]
[421271381,1777312247281,-84291.0058595,0.000249,3]
[421271383,1777312247290,-151.0,0.00025,2]
[421271385,1777312247301,-5092.40903317,0.00025044,2]
[421271387,1777312247311,-500.0,0.00025391,120]
[421271389,1777312247321,-157.0,0.000255,3]
[421271391,1777312247330,-162.27045424,0.000256,3]
[421271393,1777312247340,-506.0,0.00025673,12]
[421271395,1777312247350,-150.0,0.0002589,2]
[421271397,1777312247360,-500.0,0.00026213,120]
[421271399,1777312247370,-5092.40903317,0.00026922,2]
[421271401,1777312247380,-500.0,0.00027035,120]
[421271403,1777312247389,-442.60055418,0.00027083,2]
[421271405,1777312247399,-150.0,0.00027185,2]
[421271407,1777312247408,-500.0,0.00027397,2]
[421271409,1777312247418,-194.6,0.00027398,2]
[421271411,1777312247428,-194.6,0.00027398,7]
[421271413,1777312247437,-194.61,0.00027398,30]
[421271415,1777312247447,-160.0,0.000274,10]
[421271418,1777312247457,-3190.65,0.000274,14]
[421271420,1777312247467,-621.23,0.000274,7]
[421271422,1777312247476,-42489.35,0.000274,7]
[421271424,1777312247485,-162.27045424,0.000274,7]
[421271426,1777312247495,-500.0,0.00027452,2]
[421271428,1777312247504,-500.0,0.00027507,2]
[421271430,1777312247514,-1609.19,0.00027561,2]
[421271432,1777312247523,-500.0,0.00027562,2]
[421271434,1777312247533,-500.0,0.00027617,2]
[421271436,1777312247543,-500.0,0.00027672,2]
[421271438,1777312247552,-500.0,0.00027727,2]
[421271439,1777312247564,-500.0,0.00027782,2]
[421271441,1777312247574,-500.0,0.00027837,2]
[421271444,1777312247585,-500.0,0.00027857,120]
[421271445,1777312247595,-500.0,0.00027892,2]
[421271446,1777312247606,-500.0,0.00027947,2]
[421271447,1777312247616,-151.0,0.00028,2]
[421271448,1777312247626,-332.99,0.00028,7]
[421271449,1777312247636,-159.55,0.00028,2]
[421271451,1777312247645,-157.0,0.00028,3]
[421271453,1777312247655,-151.0,0.000285,2]
[421271455,1777312247666,-150.0,0.00028544,2]
[421271457,1777312247676,-500.0,0.00028679,120]
[421271459,1777312247686,-42489.35,0.000287,7]
[421271461,1777312247695,-5092.40903317,0.000288,2]
[421271463,1777312247704,-184856.56303403,0.000289,2]
[421271465,1777312247714,-640109.16883554,0.000289,2]
[421271468,1777312247731,-15488.2599955,0.000289,2]
[421271470,1777312247742,-617.81848648,0.000289,2]
[421271473,1777312247754,-356.75629422,0.000289,2]
[421271475,1777312247765,-553.4858,0.000289,2]
[421271477,1777312247776,-1262459.99388699,0.000289,2]
[421271479,1777312247788,-1354.89036908,0.000289,2]
[421271482,1777312247799,-547.44,0.000289,2]
[421271484,1777312247817,-555.48318851,0.000289,2]
[421271620,1777313367135,-280.0,8.219e-05,2]
[421271621,1777313367163,-500.0,0.00010699,2]
[421271622,1777313367191,-500.0,0.00010699,2]
[421271623,1777313367220,-500.0,0.00010699,2]
[421271624,1777313367247,-500.0,0.00010699,2]
[421271625,1777313367274,-500.0,0.00010699,2]
[421271626,1777313367301,-500.0,0.00010699,2]
[421271627,1777313367327,-500.0,0.00010699,2]
[421271628,1777313367356,-256.17323874,0.00010699,2]
[421271629,1777313367385,-500.0,0.00010699,2]
[421271630,1777313367412,-500.0,0.00010699,2]
[421271631,1777313367434,-564.81752726,0.000107,2]
[421271645,1777313431810,-220966.58268443,0.000107,2]
[421271646,1777313431823,-37970.15841629,0.000107,2]
[421271647,1777313431834,-32159.8313241,0.000107,2]
[421271648,1777313431846,-1254.41808677,0.000107,2]
[421271663,1777313437966,-83577.61015294,0.000107,2]
[421271664,1777313437976,-2500.0,0.0001177,2]
[421271665,1777313437986,-1631.1217,0.000119,2]
[421271666,1777313438004,-2073.07282187,0.0001216,2]
[421271667,1777313438180,-426.92717813,0.0001216,2]
[421271668,1777313438189,-69.36653146,0.0001216,2]
[421271669,1777313438285,-480.4538469,0.0001216,2]
[421271794,1777313440388,-1950.17962164,0.0001216,2]
[421271795,1777313440398,-2500.0,0.0001216,2]
[421271796,1777313440407,-2500.0,0.0001216,2]
[421271797,1777313440417,-506.0,0.000136,2]
[421271798,1777313440699,-3197.09421953,0.00013698,2]
[421271799,1777313440709,-2574.52178692,0.00013698,2]
[421271800,1777313440719,-577.68718738,0.00013698,2]
[421271801,1777313440728,-2333.37748605,0.00013698,2]
[421271802,1777313440738,-162.27045424,0.00014243,2]
[421271803,1777313440747,-160.0,0.00014243,2]
[421271804,1777313440757,-441.49,0.00016116,2]
[421271805,1777313440766,-328.6,0.00017728,2]
[421271806,1777313440775,-6481.4866397,0.00019863,2]
[421271807,1777313440784,-151.0,0.0002,2]
[421271808,1777313440794,-150.0,0.00020991,2]
[421271809,1777313440803,-151.0,0.00021,2]
[421271810,1777313440812,-19832.38701387,0.00021,2]
[421271811,1777313440822,-506.0,0.000219,9]
[421271812,1777313440831,-664.37055073,0.00021904,59]
[421271813,1777313440840,-151.0,0.00022,2]
[421271814,1777313440850,-151.0,0.00023,2]
[421271815,1777313440859,-1257.0442632,0.00023208,66]
[421271816,1777313440869,-166.0,0.00024,2]
[421271817,1777313440878,-6481.4866397,0.00024343,2]
[421271818,1777313440887,-1849.71797567,0.00024511,73]
[421271819,1777313440897,-2121.0,0.00024799,10]
[421271820,1777313440906,-2135.49278233,0.00025815,77]
[421271821,1777313440915,-150.0,0.00025989,7]
[421271822,1777313440924,-150.00000001,0.00025989,4]
[421271823,1777313440934,-150.0,0.00025989,4]
[421271824,1777313440943,-150.0,0.00025989,4]
[421271825,1777313440952,-150.0,0.00025989,4]
[421271826,1777313440962,-150.0,0.00025989,4]
[421271827,1777313440971,-2084.92,0.00027397,10]
[421271828,1777313440981,-1737.43,0.00027397,10]
[421271829,1777313440994,-2992.92,0.00027857,2]
[421271830,1777313441003,-799.85,0.00027857,17]
[421271831,1777313441013,-162.27045424,0.00027889,3]
[421271832,1777313441022,-21483.6115646,0.00027889,3]
[421271833,1777313441032,-437.54604046,0.00027898,2]
[421271834,1777313441041,-281.01764716,0.00027898,2]
[421271835,1777313441050,-178.851054,0.00027898,2]
[421271836,1777313441060,-207.48055138,0.00027898,2]
[421271837,1777313441069,-326.70341324,0.00027898,2]
[421271838,1777313441079,-232953.5249,0.00027899,2]
[421271839,1777313441089,-500.0,0.00027999,3]
[421271840,1777313441098,-500.0,0.00027999,3]
[421271841,1777313441107,-500.0,0.00027999,3]
[421271842,1777313441117,-500.0,0.00027999,3]
[421271843,1777313441127,-500.0,0.00027999,3]
[421271844,1777313441137,-500.0,0.00027999,3]
[421271845,1777313441146,-500.0,0.00027999,3]
[421271846,1777313441154,-500.0,0.00027999,3]
[421271847,1777313441162,-500.0,0.00027999,3]
[421271848,1777313441171,-500.0,0.00027999,3]
[421271849,1777313441181,-500.0,0.00027999,3]
[421271850,1777313441190,-2516.28035399,0.00028421,83]
[421271851,1777313441199,-200.0,0.00028669,2]
[421271852,1777313441209,-2685.45144558,0.0002869,3]
[421271853,1777313441219,-5000.0,0.000287,2]
[421271854,1777313441228,-189.6859518,0.0002871,2]
[421271855,1777313441237,-151.0,0.00028783,2]
[421271856,1777313441247,-151.0,0.00028783,2]
[421271857,1777313441256,-151.0,0.00028783,2]
[421271858,1777313441266,-151.0,0.00028783,2]
[421271859,1777313441275,-151.0,0.00028783,2]
[421271860,1777313441285,-151.0,0.00028783,2]
[421271861,1777313441294,-151.0,0.00028783,2]
[421271862,1777313441304,-151.0,0.00028783,2]
[421271863,1777313441313,-151.0,0.00028783,2]
[421271864,1777313441322,-151.0,0.00028783,2]
[421271865,1777313441332,-151.0,0.00028783,2]
[421271866,1777313441341,-80563.5433674,0.0002879,3]